fUST/lending_fUST_20241201
["ID","MTS","AMOUNT","RATE_DAILY","PERIOD"]
[343914348,1733057446057,-500.0,0.00027397,3]
[343914349,1733057446066,-532.16759817,0.00027397,3]
[343914350,1733057446076,-500.0,0.00027397,3]
[343914351,1733057446085,-152.657716,0.00027422,2]
[343914352,1733057446094,-516.28955487,0.00027487,2]
[343914353,1733057446104,-150.0,0.0002752,2]
[343914354,1733057446113,-160.0,0.00027564,3]
[343914355,1733057446123,-576.92177034,0.00027571,2]
[343914357,1733057446132,-1500.0,0.0002767,2]
[343914358,1733057446142,-646.4565013,0.00027671,3]
[343914359,1733057446151,-500.0,0.00027671,3]
[343914360,1733057446161,-400.06688696,0.00027671,3]
[343914361,1733057446171,-500.0,0.00027671,3]
[343914362,1733057446182,-500.0,0.00027671,3]
[343914363,1733057446192,-500.0,0.00027671,3]
[343914364,1733057446201,-500.0,0.00027671,3]
[343914365,1733057446211,-500.0,0.00027671,3]
[343914366,1733057446220,-557.57,0.00027671,3]
[343914367,1733057446229,-500.0,0.00027671,3]
[343914368,1733057446239,-500.0,0.00027671,3]
[343914369,1733057446248,-500.0,0.00027671,3]
[343914370,1733057446258,-500.0,0.00027671,3]
[343914371,1733057446267,-512.50443005,0.00027671,3]
[343914372,1733057446276,-500.0,0.00027671,3]
[343914373,1733057446286,-500.0,0.00027671,3]
[343914374,1733057446378,-500.0,0.00027671,3]
[343914375,1733057446388,-500.0,0.00027671,3]
[343914376,1733057446398,-500.0,0.00027671,3]
[343914377,1733057446407,-415.05218331,0.00027671,3]
[343914378,1733057446417,-500.0,0.00027671,3]
[343914379,1733057446426,-500.0,0.00027671,3]
[343914380,1733057446435,-500.0,0.00027671,3]
[343914381,1733057446445,-500.0,0.00027671,3]
[343914382,1733057446454,-500.0,0.00027671,3]
[343914383,1733057446464,-500.0,0.00027671,3]
[343914384,1733057446473,-500.0,0.00027671,3]
[343914385,1733057446482,-500.0,0.00027671,3]
[343914386,1733057446491,-243.76021112,0.00027671,3]
[343914387,1733057446502,-500.0,0.00027671,3]
[343914388,1733057446512,-500.0,0.00027671,3]
[343914389,1733057446522,-500.0,0.00027671,3]
[343914390,1733057446531,-500.0,0.00027671,3]
[343914391,1733057446540,-1267.84,0.00027671,3]
[343914392,1733057446550,-571.41126639,0.00027671,3]
[343914393,1733057446559,-500.0,0.00027671,3]
[343914394,1733057446568,-500.0,0.00027671,3]
[343914395,1733057446578,-500.0,0.00027671,3]
[343914396,1733057446588,-309.5398032,0.00027671,3]
[343914397,1733057446597,-500.0,0.00027671,3]
[343914398,1733057446607,-500.0,0.00027671,3]
[343914399,1733057446620,-500.0,0.00027671,3]
[343914400,1733057446630,-500.0,0.00027671,3]
[343914401,1733057446639,-500.0,0.00027671,3]
[343914402,1733057446649,-568.65,0.00027671,3]
[343914403,1733057446659,-630.2445229,0.00027671,3]
[343914404,1733057446668,-500.0,0.00027671,3]
[343914405,1733057446678,-500.0,0.00027671,3]
[343914406,1733057446687,-500.0,0.00027671,3]
[343914407,1733057446696,-500.0,0.00027671,3]
[343914408,1733057446707,-500.0,0.00027671,3]
[343914409,1733057446717,-500.0,0.00027671,3]
[343914410,1733057446727,-500.0,0.00027671,3]
[343914411,1733057446737,-500.0,0.00027671,3]
[343914412,1733057446747,-500.0,0.00027671,3]
[343914413,1733057446757,-500.0,0.00027671,3]
[343914414,1733057446767,-500.0,0.00027671,3]
[343914415,1733057446777,-500.0,0.00027671,3]
[343914416,1733057446786,-500.0,0.00027671,3]
[343914417,1733057446796,-500.0,0.00027671,3]
[343914418,1733057446805,-589.66,0.00027671,3]
[343914419,1733057446815,-511.24698668,0.00027671,3]
[343914420,1733057446824,-511.37935442,0.00027671,3]
[343914421,1733057446834,-74.13073884,0.00027671,3]
[343914422,1733057446927,-425.86926116,0.00027671,3]
[343914423,1733057446937,-500.0,0.00027671,3]
[343914424,1733057446948,-500.0,0.00027671,3]
[343914425,1733057446957,-500.0,0.00027671,3]
[343914426,1733057446967,-465.57776854,0.00027671,3]
[343914427,1733057446978,-34.42223146,0.00027671,3]
[343914428,1733057446991,-531.35,0.00027671,3]
[343914429,1733057447001,-495.08038886,0.00027671,3]
[343914430,1733057447010,-508.24,0.00027671,3]
[343914431,1733057447021,-186.90304671,0.00027671,3]
[343914432,1733057447030,-500.0,0.00027671,3]
[343914433,1733057447040,-571.83,0.00027671,3]
[343914434,1733057447049,-973.19,0.00027671,3]
[343914435,1733057447059,-602.14749427,0.00027671,3]
[343914436,1733057447068,-500.0,0.00027671,3]
[343914437,1733057447078,-165.0847072,0.00027671,3]
[343914438,1733057447088,-500.0,0.00027671,3]
[343914439,1733057447098,-500.0,0.00027671,3]
[343914440,1733057447108,-500.0,0.00027671,3]
[343914441,1733057447117,-500.0,0.00027671,3]
[343914442,1733057447127,-560.72,0.00027671,3]
[343914443,1733057447136,-389.9167963,0.00027671,3]
[343914444,1733057447146,-850.06,0.00027671,3]
[343914445,1733057447155,-500.0,0.00027671,3]
[343914446,1733057447170,-500.0,0.00027671,3]
[343914447,1733057447179,-500.0,0.00027671,3]
[343914448,1733057447189,-500.0,0.00027671,3]
[343914449,1733057447199,-500.0,0.00027671,3]
[343914450,1733057447209,-500.0,0.00027671,3]
[343914451,1733057447218,-500.0,0.00027671,3]
[343914452,1733057447228,-83.80841026,0.00027671,3]
[343914455,1733057749955,160.686105,0.00013973,2]
[343914465,1733058375736,160.834764,0.00013973,2]
[343914466,1733058398145,-307.67234768,0.000198,2]
[343914468,1733058454089,-1169.27083333,0.0002,2]
[343914469,1733058454114,-223.0,0.00024999,2]
[343914470,1733058454138,-300.0,0.00024999,2]
[343914471,1733058454160,-355.99070139,0.00025,5]
[343914475,1733058551108,-1142.90340071,0.0002,2]
[343914522,1733058632600,-1169.27083333,0.0002,2]
[343914524,1733058632610,-300.0,0.00024999,2]
[343914526,1733058632620,-1052.68261144,0.00025,5]
[343914531,1733058632659,-8591.32668717,0.00025,5]
[343914533,1733058632669,-160.834764,0.00025156,2]
[343914535,1733058632679,-1620.98,0.00027,30]
[343914537,1733058632689,-150.0,0.00027078,2]
[343914539,1733058632698,-150.0,0.00027078,2]
[343914541,1733058632707,-531.0,0.00027078,2]
[343914542,1733058632717,-2377.0,0.00027078,2]
[343914543,1733058632726,-886.24367265,0.00027297,2]
[343914544,1733058632735,-461.81,0.00027354,15]
[343914545,1733058632744,-575.08,0.00027387,3]
[343914546,1733058632754,-500.0,0.00027396,2]
[343914547,1733058632766,-500.0,0.00027396,2]
[343914549,1733058632775,-500.0,0.00027396,2]
[343914551,1733058632785,-500.0,0.00027396,2]
[343914552,1733058632797,-345.87223378,0.00027396,2]
[343914553,1733058632806,-202.1139254,0.00027397,2]
[343914554,1733058632816,-646.4565013,0.00027397,3]
[343914555,1733058632825,-509.21,0.00027397,3]
[343914556,1733058632834,-500.0,0.00027397,3]
[343914557,1733058632845,-518.71564337,0.00027397,3]
[343914558,1733058632854,-500.0,0.00027397,3]
[343914559,1733058632864,-400.06688696,0.00027397,3]
[343914560,1733058632873,-500.0,0.00027397,3]
[343914561,1733058632883,-500.0,0.00027397,3]
[343914562,1733058632893,-500.0,0.00027397,3]
[343914564,1733058632902,-500.0,0.00027397,3]
[343914565,1733058632912,-500.0,0.00027397,3]
[343914566,1733058632921,-500.0,0.00027397,3]
[343914567,1733058632931,-500.0,0.00027397,3]
[343914568,1733058632942,-500.0,0.00027397,3]
[343914569,1733058632952,-500.0,0.00027397,3]
[343914570,1733058632962,-500.0,0.00027397,3]
[343914571,1733058632975,-500.0,0.00027397,3]
[343914572,1733058632984,-500.0,0.00027397,3]
[343914573,1733058632994,-412.42605149,0.00027397,3]
[343914574,1733058633004,-500.0,0.00027397,3]
[343914575,1733058633015,-271.61348649,0.00027397,3]
[343914576,1733058633025,-500.0,0.00027397,3]
[343914577,1733058633038,-500.0,0.00027397,3]
[343914578,1733058633047,-208.75901506,0.00027397,3]
[343914579,1733058633058,-500.0,0.00027397,3]
[343914580,1733058633068,-500.0,0.00027397,3]
[343914581,1733058633079,-514.09021941,0.00027397,3]
[343914582,1733058633089,-574.1119942,0.00027397,3]
[343914583,1733058633099,-500.0,0.00027397,3]
[343914584,1733058633109,-500.0,0.00027397,3]
[343914585,1733058633119,-500.0,0.00027397,3]
[343914586,1733058633129,-554.49230796,0.00027397,3]
[343914587,1733058633139,-500.0,0.00027397,2]
[343914588,1733058633149,-504.46274738,0.00027397,3]
[343914589,1733058633159,-580.46127643,0.00027397,3]
[343914590,1733058633169,-183.24572941,0.00027397,3]
[343914591,1733058633179,-500.0,0.00027397,3]
[343914592,1733058633189,-500.0,0.00027397,3]
[343914593,1733058633200,-500.0,0.00027397,3]
[343914594,1733058633210,-503.61027085,0.00027397,3]
[343914595,1733058633220,-500.0,0.00027397,3]
[343914596,1733058633230,-973.19,0.00027397,3]
[343914597,1733058633240,-500.0,0.00027397,3]
[343914598,1733058633251,-339.48794956,0.00027397,3]
[343914599,1733058633262,-500.0,0.00027397,2]
[343914600,1733058633273,-500.0,0.00027397,3]
[343914601,1733058633282,-500.0,0.00027397,3]
[343914602,1733058633292,-500.0,0.00027397,3]
[343914603,1733058633302,-500.0,0.00027397,3]
[343914604,1733058633313,-605.82,0.00027397,3]
[343914605,1733058633323,-500.0,0.00027397,3]
[343914606,1733058633333,-500.0,0.00027397,3]
[343914607,1733058633343,-850.06,0.00027397,3]
[343914608,1733058633353,-500.0,0.00027397,3]
[343914609,1733058633363,-500.0,0.00027397,3]
[343914610,1733058633373,-529.63191898,0.00027397,3]
[343914611,1733058633383,-571.83,0.00027397,3]
[343914612,1733058633394,-500.0,0.00027397,3]
[343914613,1733058633405,-500.0,0.00027397,3]
[343914614,1733058633414,-506.24473895,0.00027397,3]
[343914615,1733058633425,-500.0,0.00027397,3]
[343914616,1733058633435,-500.0,0.00027397,3]
[343914617,1733058633446,-500.0,0.00027397,3]
[343914618,1733058633456,-500.0,0.00027397,3]
[343914619,1733058633466,-533.06282274,0.00027397,3]
[343914620,1733058633476,-575.85533055,0.00027397,3]
[343914621,1733058633485,-500.0,0.00027397,3]
[343914622,1733058633495,-500.0,0.00027397,3]
[343914623,1733058633505,-500.0,0.00027397,3]
[343914624,1733058633517,-500.0,0.00027397,3]
[343914625,1733058633527,-511.08603335,0.00027397,3]
[343914626,1733058633537,-500.0,0.00027397,3]
[343914627,1733058633549,-500.0,0.00027397,3]
[343914628,1733058633559,-500.0,0.00027397,3]
[343914629,1733058633569,-500.0,0.00027397,3]
[343914630,1733058633578,-500.0,0.00027397,3]
[343914631,1733058633708,-500.0,0.00027397,3]
[343914632,1733058633718,-500.0,0.00027397,3]
[343914633,1733058633727,-500.0,0.00027397,3]
[343914634,1733058633737,-540.21113922,0.00027397,3]
[343914635,1733058633747,-500.0,0.00027397,3]
[343914636,1733058633757,-500.0,0.00027397,3]
[343914637,1733058633767,-560.72,0.00027397,3]
[343914638,1733058633778,-500.0,0.00027397,3]
[343914639,1733058633788,-224.69966137,0.00027397,3]
[343914640,1733058633798,-500.0,0.00027397,3]
[343914641,1733058633809,-500.0,0.00027397,3]
[343914642,1733058633818,-500.0,0.00027397,3]
[343914643,1733058633829,-931.98,0.00027397,3]
[343914644,1733058633840,-509.42899791,0.00027397,3]
[343914645,1733058633849,-868.9292748,0.00027397,5]
[343914646,1733058633860,-500.0,0.00027397,3]
[343914647,1733058633869,-726.01,0.00027397,3]
[343914648,1733058633879,-508.4456035,0.00027397,3]
[343914649,1733058633889,-500.0,0.00027397,3]
[343914650,1733058633899,-509.56680586,0.00027397,3]
[343914651,1733058633909,-990.72,0.00027397,3]
[343914652,1733058633919,-500.0,0.00027397,3]
[343914653,1733058633929,-500.0,0.00027397,3]
[343914654,1733058633939,-500.0,0.00027397,3]
[343914655,1733058633950,-500.0,0.00027397,3]
[343914656,1733058633960,-388.13153747,0.00027397,3]
[343914657,1733058633970,-506.91,0.00027397,3]
[343914658,1733058633980,-515.28252766,0.00027397,3]
[343914659,1733058633990,-500.0,0.00027397,3]
[343914660,1733058634002,-505.4984902,0.00027397,3]
[343914661,1733058634014,-500.0,0.00027397,3]
[343914662,1733058634024,-500.0,0.00027397,3]
[343914663,1733058634037,-500.0,0.00027397,3]
[343914664,1733058634047,-500.0,0.00027397,3]
[343914665,1733058634058,-208.65918451,0.00027397,3]
[343914666,1733058634068,-500.0,0.00027397,3]
[343914667,1733058634079,-500.0,0.00027397,3]
[343914668,1733058634089,-500.0,0.00027397,3]
[343914669,1733058634099,-500.0,0.00027397,3]
[343914670,1733058634111,-500.0,0.00027397,3]
[343914671,1733058634121,-1077.88,0.00027397,3]
[343914672,1733058634131,-506.13706304,0.00027397,3]
[343914673,1733058634141,-500.0,0.00027397,3]
[343914674,1733058634151,-527.50007082,0.00027397,3]
[343914675,1733058634161,-200.0,0.00027397,3]
[343914676,1733058634171,-506.78851728,0.00027397,3]
[343914677,1733058634182,-506.69589701,0.00027397,3]
[343914678,1733058634192,-500.0,0.00027397,3]
[343914679,1733058634203,-500.0,0.00027397,3]
[343914680,1733058634214,-500.0,0.00027397,3]
[343914681,1733058634233,-500.0,0.00027397,3]
[343914682,1733058634244,-500.0,0.00027397,3]
[343914683,1733058634255,-500.0,0.00027397,3]
[343914684,1733058634268,-500.0,0.00027397,3]
[343914685,1733058634278,-500.0,0.00027397,3]
[343914686,1733058634288,-500.0,0.00027397,3]
[343914687,1733058634299,-475.94352366,0.00027397,3]
[343914688,1733058634309,-500.0,0.00027397,3]
[343914689,1733058634318,-500.0,0.00027397,3]
[343914690,1733058634328,-500.0,0.00027397,3]
[343914691,1733058634338,-500.0,0.00027397,3]
[343914692,1733058634348,-500.0,0.00027397,3]
[343914693,1733058634358,-500.0,0.00027397,3]
[343914694,1733058634368,-500.0,0.00027397,3]
[343914695,1733058634378,-500.0,0.00027397,3]
[343914696,1733058634387,-500.0,0.00027397,3]
[343914697,1733058634397,-500.0,0.00027397,3]
[343914698,1733058634407,-500.0,0.00027397,3]
[343914699,1733058634418,-500.0,0.00027397,3]
[343914700,1733058634429,-500.0,0.00027397,3]
[343914701,1733058634439,-500.0,0.00027397,3]
[343914702,1733058634449,-500.0,0.00027397,3]
[343914703,1733058634459,-532.16759817,0.00027397,3]
[343914704,1733058634468,-500.0,0.00027397,3]
[343914705,1733058634478,-500.0,0.00027397,3]
[343914706,1733058634489,-500.0,0.00027397,3]
[343914707,1733058634499,-500.0,0.00027397,3]
[343914708,1733058634510,-500.0,0.00027397,3]
[343914709,1733058634522,-500.0,0.00027397,3]
[343914710,1733058634532,-500.0,0.00027397,3]
[343914711,1733058634542,-500.0,0.00027397,3]
[343914712,1733058634552,-500.0,0.00027397,3]
[343914713,1733058634563,-500.0,0.00027397,3]
[343914714,1733058634573,-792.5,0.00027397,3]
[343914715,1733058634583,-500.0,0.00027397,3]
[343914716,1733058634593,-500.0,0.00027397,3]
[343914717,1733058634603,-534.34,0.00027397,3]
[343914718,1733058634614,-500.0,0.00027397,3]
[343914719,1733058634623,-500.0,0.00027397,3]
[343914720,1733058634632,-500.0,0.00027397,3]
[343914721,1733058634642,-500.0,0.00027397,3]
[343914722,1733058634651,-500.0,0.00027397,3]
[343914723,1733058634661,-500.0,0.00027397,3]
[343914724,1733058634672,-500.0,0.00027397,3]
[343914725,1733058634682,-500.0,0.00027397,3]
[343914726,1733058634694,-500.0,0.00027397,3]
[343914727,1733058634704,-512.50443005,0.00027397,3]
[343914728,1733058634714,-500.0,0.00027397,3]
[343914729,1733058634724,-500.0,0.00027397,3]
[343914730,1733058634735,-500.0,0.00027397,3]
[343914731,1733058634744,-500.0,0.00027397,3]
[343914732,1733058634753,-500.0,0.00027397,3]
[343914733,1733058634764,-500.0,0.00027397,3]
[343914734,1733058634773,-1500.0,0.00027397,2]
[343914735,1733058634783,-500.0,0.00027397,3]
[343914736,1733058634792,-500.0,0.00027397,3]
[343914737,1733058634802,-594.42,0.00027397,3]
[343914738,1733058634812,-500.0,0.00027397,3]
[343914739,1733058634822,-673.25,0.00027397,3]
[343914740,1733058634833,-500.0,0.00027397,3]
[343914741,1733058634842,-1169.27083333,0.00027397,3]
[343914742,1733058634853,-1169.27083333,0.00027397,3]
[343914743,1733058634866,-1169.27083333,0.00027397,3]
[343914744,1733058634875,-500.0,0.00027397,3]
[343914745,1733058634885,-500.0,0.00027397,3]
[343914746,1733058634895,-500.0,0.00027397,3]
[343914747,1733058634905,-42362.14,0.00027397,3]
[343914748,1733058634914,-240.32287367,0.00027397,3]
[343914749,1733058634924,-137.96540517,0.00027397,3]
[343914788,1733058643521,-362.03459483,0.00027397,3]
[343914789,1733058643531,-545.81943234,0.00027397,3]
[343914790,1733058643540,-500.0,0.00027397,3]
[343914791,1733058643549,-500.0,0.00027397,3]
[343914792,1733058643559,-500.0,0.00027397,3]
[343914793,1733058643569,-500.0,0.00027397,3]
[343914794,1733058643578,-500.0,0.00027397,3]
[343914795,1733058643588,-354.69,0.00027397,2]
[343914796,1733058643597,-500.0,0.00027397,3]
[343914797,1733058643607,-500.0,0.00027397,3]
[343914798,1733058643616,-222.33859838,0.00027397,3]
[343914799,1733058643626,-500.0,0.00027397,3]
[343914800,1733058643635,-500.0,0.00027397,3]
[343914801,1733058643645,-500.0,0.00027397,3]
[343914802,1733058643654,-315.58,0.00027397,3]
[343914803,1733058643666,-500.0,0.00027397,3]
[343914804,1733058643676,-500.0,0.00027397,3]
[343914805,1733058643685,-340.73376883,0.00027397,3]
[343914808,1733058643694,-500.0,0.00027397,3]
[343914810,1733058643704,-323.66398931,0.00027397,3]
[343914813,1733058643713,-500.0,0.00027397,3]
[343914815,1733058643722,-500.0,0.00027397,3]
[343914817,1733058643732,-505.00088861,0.00027397,3]
[343914819,1733058643741,-500.0,0.00027397,3]
[343914820,1733058643751,-500.0,0.00027397,3]
[343914821,1733058643761,-592.12,0.00027397,3]
[343914822,1733058643770,-500.0,0.00027397,3]
[343914823,1733058643781,-500.0,0.00027397,3]
[343914824,1733058643790,-500.0,0.00027397,3]
[343914825,1733058643800,-1267.84,0.00027397,3]
[343914826,1733058643809,-500.0,0.00027397,3]
[343914827,1733058643819,-520.57417594,0.00027397,3]
[343914828,1733058643912,-589.66,0.00027397,3]
[343914829,1733058643922,-500.0,0.00027397,3]
[343914830,1733058643932,-500.0,0.00027397,3]
[343914831,1733058643941,-431.71719479,0.00027397,3]
[343914832,1733058643951,-500.0,0.00027397,3]
[343914833,1733058643960,-500.0,0.00027397,3]
[343914834,1733058643971,-500.0,0.00027397,3]
[343914835,1733058643981,-500.0,0.00027397,3]
[343914836,1733058643991,-568.65,0.00027397,3]
[343914837,1733058644000,-500.0,0.00027397,3]
[343914838,1733058644010,-601.53563775,0.00027397,3]
[343914839,1733058644019,-500.0,0.00027397,3]
[343914840,1733058644036,-500.0,0.00027397,3]
[343914841,1733058644046,-539.41640373,0.00027397,3]
[343914842,1733058644055,-500.0,0.00027397,3]
[343914843,1733058644064,-158.12,0.00027397,3]
[343914844,1733058644074,-434.82773007,0.00027397,3]
[343914845,1733058644085,-495.71835337,0.00027397,3]
[343914846,1733058644094,-500.0,0.00027397,3]
[343914847,1733058644104,-500.0,0.00027397,3]
[343914848,1733058644114,-500.0,0.00027397,3]
[343914849,1733058644124,-500.0,0.00027397,3]
[343914850,1733058644134,-500.0,0.00027397,3]
[343914851,1733058644144,-500.0,0.00027397,3]
[343914852,1733058644154,-500.0,0.00027397,3]
[343914853,1733058644163,-500.0,0.00027397,3]
[343914854,1733058644174,-500.0,0.00027397,3]
[343914855,1733058644183,-242.0107271,0.00027397,3]
[343914856,1733058644193,-500.0,0.00027397,3]
[343914857,1733058644203,-500.0,0.00027397,3]
[343914858,1733058644212,-516.22888079,0.00027397,3]
[343914859,1733058644222,-508.24,0.00027397,3]
[343914860,1733058644231,-500.0,0.00027397,3]
[343914861,1733058644241,-500.0,0.00027397,3]
[343914862,1733058644250,-473.18928205,0.00027397,3]
[343914863,1733058644260,-500.0,0.00027397,3]
[343914864,1733058644269,-500.0,0.00027397,3]
[343914865,1733058644281,-500.0,0.00027397,3]
[343914866,1733058644291,-500.0,0.00027397,3]
[343914867,1733058644301,-500.0,0.00027397,3]
[343914868,1733058644311,-411.8181777,0.00027397,3]
[343914869,1733058644321,-500.0,0.00027397,3]
[343914870,1733058644331,-500.0,0.00027397,3]
[343914871,1733058644340,-228.39170788,0.00027397,3]
[343914872,1733058644350,-500.0,0.00027397,2]
[343914873,1733058644361,-500.0,0.00027397,3]
[343914874,1733058644374,-510.14,0.00027397,3]
[343914875,1733058644386,-152.657716,0.00027422,2]
[343914876,1733058644395,-150.0,0.0002749,2]
[343914877,1733058644404,-516.28955487,0.00027496,2]
[343914878,1733058644413,-176.981131,0.00027659,2]
[343914879,1733058644423,-268.27232841,0.00027669,2]
[343914880,1733058644444,-500.0,0.00027669,2]
[343914881,1733058644459,-301.33798829,0.00027669,2]
[343914882,1733058644468,-190.56480512,0.00027669,2]
[343914883,1733058644478,-330.29927308,0.00027669,2]
[343914884,1733058644487,-1105.71154199,0.00027671,2]
[343914885,1733058644499,-500.0,0.00027671,3]
[343914886,1733058644508,-500.0,0.00027671,3]
[343914887,1733058644518,-500.0,0.00027671,3]
[343914888,1733058644529,-270.99484088,0.00027671,3]
[343914889,1733058644539,-500.0,0.00027671,3]
[343914890,1733058644548,-500.0,0.00027671,3]
[343914891,1733058644557,-500.0,0.00027671,3]
[343914892,1733058644567,-500.0,0.00027671,3]
[343914893,1733058644576,-516.66336608,0.00027671,3]
[343914894,1733058644585,-500.0,0.00027671,3]
[343914895,1733058644595,-500.0,0.00027671,3]
[343914896,1733058644604,-243.76021112,0.00027671,3]
[343914897,1733058644614,-571.41126639,0.00027671,3]
[343914898,1733058644623,-500.0,0.00027671,3]
[343914899,1733058644632,-500.0,0.00027671,3]
[343914900,1733058644642,-500.0,0.00027671,3]
[343914901,1733058644651,-630.2445229,0.00027671,3]
[343914902,1733058644660,-500.0,0.00027671,3]
[343914903,1733058644670,-507.90410497,0.00027671,3]
[343914904,1733058644679,-511.38236095,0.00027671,3]
[343914905,1733058644688,-500.0,0.00027671,3]
[343914906,1733058644697,-500.0,0.00027671,3]
[343914907,1733058644707,-500.0,0.00027671,3]
[343914908,1733058644716,-973.19,0.00027671,3]
[343914909,1733058644725,-500.0,0.00027671,3]
[343914910,1733058644735,-500.0,0.00027671,3]
[343914911,1733058644744,-500.0,0.00027671,3]
[343914912,1733058644753,-500.0,0.00027671,3]
[343914913,1733058644762,-559.42564322,0.00027671,3]
[343914914,1733058644771,-392.20120983,0.00027671,3]
[343914915,1733058644783,-389.9167963,0.00027671,3]
[343914916,1733058644792,-850.06,0.00027671,3]
[343914917,1733058644801,-500.0,0.00027671,3]
[343914918,1733058644810,-500.0,0.00027671,3]
[343914919,1733058644819,-571.83,0.00027671,3]
[343914920,1733058644828,-500.0,0.00027671,3]
[343914921,1733058644837,-386.40388703,0.00027671,3]
[343914922,1733058644847,-602.14749427,0.00027671,3]
[343914923,1733058644856,-506.9106099,0.00027671,3]
[343914924,1733058644865,-165.0847072,0.00027671,3]
[343914925,1733058644874,-500.0,0.00027671,3]
[343914926,1733058644883,-500.0,0.00027671,3]
[343914927,1733058644893,-413.56266446,0.00027671,3]
[343914928,1733058644903,-500.0,0.00027671,3]
[343914929,1733058644912,-500.0,0.00027671,3]
[343914930,1733058644922,-500.0,0.00027671,3]
[343914931,1733058644932,-205.73928027,0.00027671,3]
[343914932,1733058644942,-514.16210858,0.00027671,3]
[343914933,1733058644951,-500.0,0.00027671,3]
[343914934,1733058644960,-500.0,0.00027671,3]
[343914935,1733058644970,-500.0,0.00027671,3]
[343914936,1733058644980,-500.0,0.00027671,3]
[343914937,1733058644989,-547.35,0.00027671,3]
[343914938,1733058644999,-500.0,0.00027671,3]
[343914939,1733058645008,-284.79085959,0.00027671,3]
[343914940,1733058645018,-560.72,0.00027671,3]
[343914941,1733058645030,-500.0,0.00027671,3]
[343914942,1733058645043,-500.0,0.00027671,3]
[343914943,1733058645053,-500.0,0.00027671,3]
[343914944,1733058645063,-470.75536038,0.00027671,3]
[343914945,1733058645072,-931.98,0.00027671,3]
[343914946,1733058645082,-500.0,0.00027671,3]
[343914947,1733058645092,-726.01,0.00027671,3]
[343914948,1733058645102,-500.0,0.00027671,3]
[343914949,1733058645112,-990.72,0.00027671,3]
[343914950,1733058645123,-500.0,0.00027671,3]
[343914951,1733058645132,-500.0,0.00027671,3]
[343914952,1733058645141,-500.0,0.00027671,3]
[343914953,1733058645151,-500.0,0.00027671,3]
[343914954,1733058645161,-506.91,0.00027671,3]
[343914955,1733058645171,-510.08027267,0.00027671,3]
[343914956,1733058645180,-500.0,0.00027671,3]
[343914957,1733058645190,-500.0,0.00027671,3]
[343914958,1733058645199,-500.0,0.00027671,3]
[343914959,1733058645209,-500.0,0.00027671,3]
[343914960,1733058645219,-500.0,0.00027671,3]
[343914961,1733058645229,-597.74081355,0.00027671,3]
[343914962,1733058645238,-500.0,0.00027671,3]
[343914963,1733058645248,-248.50789767,0.00027671,3]
[343914964,1733058645258,-500.0,0.00027671,3]
[343914965,1733058645268,-1077.88,0.00027671,3]
[343914966,1733058645280,-241.59083774,0.00027671,3]
[343914967,1733058645291,-200.0,0.00027671,3]
[343914968,1733058645300,-408.03138671,0.00027671,3]
[343914969,1733058645310,-500.0,0.00027671,3]